bitfinex-derivatives/quotes_BTCF0:USTF0_20241231
["timestamp","ask_amount","ask_price","bid_price","bid_amount"]
[1735688936162,0.053532,93580.0,93579.0,0.053532]
[1735688937575,0.053529,93585.0,93584.0,0.053528]
[1735688938874,0.054529,93585.0,93584.0,0.053528]
[1735688939277,0.001,93585.0,93584.0,0.053528]
[1735688939688,0.002,93585.0,93584.0,0.053528]
[1735688942082,0.002,93585.0,93584.0,0.414328]
[1735688942983,0.053525,93591.0,93590.0,0.053526]
[1735688943379,0.20109937,93597.0,93584.0,0.414928]
[1735688943573,0.22391056,93597.0,93584.0,0.414328]
[1735688943978,0.053527,93593.0,93592.0,0.053524]
[1735688945185,0.055527,93593.0,93592.0,0.053524]
[1735688946589,0.057527,93593.0,93592.0,0.053524]
[1735688949887,0.053529,93588.0,93587.0,0.053527]
[1735688951286,0.055529,93588.0,93587.0,0.053527]
[1735688952088,0.056529,93588.0,93587.0,0.053527]
[1735688961904,0.003,93588.0,93587.0,0.053527]
[1735688963006,0.002,93588.0,93587.0,0.053527]
[1735688964609,0.001,93588.0,93587.0,0.053527]
[1735688966212,0.054527,93588.0,93587.0,0.053527]
[1735688968713,0.053527,93588.0,93587.0,0.053527]
[1735688969713,0.02273726,93596.0,93587.0,0.053527]
[1735688969908,0.053523,93596.0,93595.0,0.053523]
[1735688971512,0.055523,93596.0,93595.0,0.053523]
[1735688971908,0.1,93605.0,93604.0,0.053518]
[1735688972718,0.12374884,93605.0,93604.0,0.053518]
[1735688972921,0.17726584,93605.0,93604.0,0.053518]
[1735688973309,0.17926584,93605.0,93604.0,0.053518]
[1735688974323,0.17926584,93605.0,93597.0,0.053522]
[1735688974324,0.053524,93598.0,93597.0,0.053522]
[1735688974815,0.053524,93598.0,93593.0,0.36136]
[1735688974816,0.102,93605.0,93604.0,0.053518]
[1735688975024,0.102,93605.0,93604.0,0.414318]
[1735688976816,0.101,93605.0,93604.0,0.414318]
[1735688977118,0.102,93605.0,93604.0,0.414318]
[1735688977525,0.101,93605.0,93604.0,0.414318]
[1735688978822,0.154517,93605.0,93604.0,0.414318]
[1735688979920,0.101,93605.0,93604.0,0.414318]
[1735688987623,0.101,93605.0,93604.0,0.43514383]
[1735688988335,0.1,93620.0,93619.0,0.053509]
[1735688988626,0.1,93620.0,93619.0,0.414309]
[1735688989620,0.104,93620.0,93619.0,0.414309]
[1735688990626,0.105,93620.0,93619.0,0.415309]
[1735688999326,0.105,93620.0,93619.0,0.054509]
[1735688999530,0.105,93620.0,93619.0,0.415309]
[1735689002228,0.053494,93646.0,93634.0,0.053501]
[1735689002422,0.053495,93645.0,93634.0,0.775101]
[1735689002628,0.03016422,93649.0,93634.0,0.775101]
[1735689002829,0.053495,93648.0,93647.0,0.053493]
[1735689004433,0.054495,93648.0,93647.0,0.054493]
[1735689005842,0.055495,93648.0,93647.0,0.055493]
[1735689009543,0.002,93648.0,93647.0,0.416293]
[1735689011034,0.001,93648.0,93647.0,0.416293]
[1735689011234,0.1,93650.0,93649.0,0.053492]
[1735689012535,0.105,93650.0,93649.0,0.053492]
[1735689012741,0.158492,93650.0,93649.0,0.053492]
[1735689013243,0.158492,93650.0,93649.0,0.001]
[1735689014939,0.153492,93650.0,93649.0,0.001]
[1735689015242,0.156492,93650.0,93649.0,0.001]
[1735689015936,0.156492,93650.0,93649.0,0.054492]
[1735689017245,0.103,93650.0,93649.0,0.054492]
[1735689017735,0.103,93650.0,93649.0,0.053492]
[1735689018045,0.103,93650.0,93649.0,0.054492]
[1735689018434,0.1,93650.0,93649.0,0.053492]
[1735689018635,0.103,93650.0,93649.0,0.053492]
[1735689021638,0.103,93650.0,93649.0,0.07175195]
[1735689032450,0.00160174,93669.0,93649.0,0.37905995]
[1735689032755,0.00160174,93669.0,93664.0,0.053484]
[1735689033140,0.00160174,93669.0,93664.0,0.086484]
[1735689033943,0.103,93665.0,93664.0,0.086484]
[1735689034251,0.103,93665.0,93664.0,0.087484]
[1735689034652,0.1,93665.0,93664.0,0.087484]
[1735689034849,0.105,93665.0,93664.0,0.087484]
[1735689036450,0.105,93665.0,93664.0,0.054484]
[1735689042556,0.158483,93665.0,93664.0,0.054484]
[1735689042757,0.158483,93665.0,93664.0,0.001]
[1735689043647,0.158483,93665.0,93664.0,0.054484]
[1735689045057,0.105,93665.0,93664.0,0.054484]
[1735689047653,0.00160174,93669.0,93664.0,0.415284]
[1735689047845,0.00160174,93669.0,93668.0,0.053481]
[1735689050854,0.00160174,93669.0,93668.0,0.054481]
[1735689052651,0.00160174,93669.0,93668.0,0.07127329]
[1735689053160,0.1,93680.0,93679.0,0.053475]
[1735689053364,0.1,93680.0,93679.0,0.414275]
[1735689054654,0.1,93680.0,93679.0,0.415275]
[1735689055452,0.1,93680.0,93679.0,0.416275]
[1735689057147,0.1,93680.0,93679.0,0.415275]
[1735689059161,0.1,93680.0,93679.0,0.414275]
[1735689060149,0.1,93680.0,93679.0,0.415275]
[1735689062855,0.04399483,93680.0,93679.0,0.415275]
[1735689065460,0.04399483,93680.0,93679.0,0.414275]
[1735689065768,0.04399483,93680.0,93679.0,0.423275]
[1735689066263,0.04399483,93680.0,93679.0,0.417275]
[1735689066461,0.04399483,93680.0,93679.0,0.419275]
[1735689066661,0.04399483,93680.0,93679.0,0.416275]
[1735689066862,0.04399483,93680.0,93679.0,0.418275]
[1735689067065,0.04399483,93680.0,93679.0,0.416275]
[1735689067263,0.04399483,93680.0,93679.0,0.418275]
[1735689068265,0.04399483,93680.0,93679.0,0.416275]
[1735689068565,0.04399483,93680.0,93679.0,0.418275]
[1735689069471,0.04399483,93680.0,93679.0,0.419275]
[1735689069867,0.04399483,93680.0,93679.0,0.780075]
[1735689072371,0.04399483,93680.0,93679.0,0.779075]
[1735689077479,8.3e-07,93680.0,93679.0,0.779075]
[1735689077671,8.3e-07,93680.0,93679.0,1.079075]
[1735689077867,0.1,93695.0,93694.0,0.053466]
[1735689078071,0.1,93695.0,93694.0,0.775066]
[1735689078979,0.1,93695.0,93694.0,0.778066]
[1735689079379,0.1,93695.0,93694.0,0.787066]
[1735689079883,0.1,93695.0,93694.0,0.789066]
[1735689080681,0.1,93695.0,93694.0,0.788066]
[1735689081384,0.1,93695.0,93694.0,0.80362736]
[1735689082280,0.1,93695.0,93694.0,0.80062736]
[1735689082877,0.1,93695.0,93694.0,0.79862736]
[1735689087879,0.1,93700.0,93699.0,0.053464]
[1735689088079,1e-06,93700.0,93699.0,0.053464]
[1735689088382,1e-06,93700.0,93699.0,0.353464]
[1735689089578,1e-06,93700.0,93699.0,0.355464]
[1735689089780,0.0331,93738.0,93699.0,0.35540341]
[1735689090083,0.00160066,93732.0,93709.0,0.775058]
[1735689091084,0.05504566,93732.0,93709.0,0.775058]
[1735689092187,0.00160066,93732.0,93709.0,1.075058]
[1735689093001,0.00160066,93732.0,93724.0,0.053449]
[1735689093183,0.0331,93738.0,93724.0,0.775049]
[1735689094282,0.0331,93738.0,93724.0,0.776049]
[1735689096788,0.053444,93734.0,93724.0,0.776049]
[1735689096979,0.0331,93738.0,93724.0,0.776049]
[1735689097183,0.086542,93738.0,93724.0,0.776049]
[1735689097688,0.0331,93738.0,93724.0,0.776049]
[1735689098082,0.0331,93738.0,93724.0,0.79195234]
[1735689099090,0.053443,93736.0,93724.0,0.79195234]
[1735689099988,0.0881008,93740.0,93724.0,0.73850334]
[1735689100191,0.053441,93739.0,93738.0,0.053441]
[1735689101286,0.0881008,93740.0,93737.0,0.3608]
[1735689101287,0.053441,93738.0,93737.0,0.3608]
[1735689102589,0.053441,93738.0,93737.0,0.414242]
[1735689105590,0.06818543,93738.0,93737.0,0.414242]
[1735689105789,0.06818543,93738.0,93737.0,0.053442]
[1735689108001,0.053441,93738.0,93737.0,0.053442]
[1735689108193,0.0304,93739.0,93738.0,0.053441]
[1735689111994,0.0881008,93740.0,93739.0,0.053441]
[1735689125003,0.0881008,93740.0,93739.0,0.414241]
[1735689125908,0.1415408,93740.0,93739.0,0.414241]
[1735689128401,0.0881008,93740.0,93731.0,0.3608]
[1735689128702,0.053445,93732.0,93731.0,0.3608]
[1735689129609,0.053445,93732.0,93731.0,0.3628]
[1735689129809,0.053445,93732.0,93731.0,0.3638]
[1735689130406,0.053445,93732.0,93731.0,0.417245]
[1735689130798,0.053445,93732.0,93731.0,0.35706018]
[1735689131000,0.053445,93732.0,93731.0,0.056445]
[1735689131200,0.053445,93732.0,93731.0,0.003]
[1735689131404,0.06743514,93732.0,93731.0,0.003]
[1735689132409,0.053452,93720.0,93719.0,0.00160048]
[1735689133510,0.053452,93720.0,93719.0,0.05505248]
[1735689134711,0.053452,93720.0,93719.0,0.06005248]
[1735689135604,0.053452,93720.0,93719.0,0.06305248]
[1735689138107,0.053452,93720.0,93719.0,0.061452]
[1735689142714,0.053442,93737.0,93720.0,0.053452]
[1735689143212,0.053448,93728.0,93727.0,0.053446]
[1735689143817,0.053445,93733.0,93732.0,0.053444]
[1735689145526,0.053449,93728.0,93727.0,0.053447]
[1735689146815,0.053449,93728.0,93727.0,0.054447]
[1735689147917,0.053449,93728.0,93727.0,0.055447]
[1735689148423,0.053448,93728.0,93727.0,0.055447]
[1735689153519,0.0881008,93740.0,93727.0,0.002]
[1735689153824,0.0881008,93740.0,93739.0,0.414241]
[1735689155227,0.0382008,93740.0,93739.0,0.414241]
[1735689157423,0.1,93755.0,93746.0,0.053437]
[1735689157816,0.1,93755.0,93754.0,0.053432]
[1735689158018,0.1,93755.0,93754.0,0.414232]
[1735689160218,0.1,93755.0,93754.0,0.415232]
[1735689164229,0.1,93755.0,93754.0,0.42864507]
[1735689165823,0.1,93755.0,93754.0,0.78944507]
[1735689174437,0.1,93755.0,93754.0,0.06784507]
[1735689174641,0.1,93755.0,93754.0,0.78944507]
[1735689188859,0.1,93755.0,93754.0,0.79644507]
[1735689189352,0.1,93770.0,93769.0,0.053424]
[1735689189559,0.1,93770.0,93769.0,0.414224]
[1735689193550,0.1,93770.0,93769.0,0.775024]
[1735689198160,0.1,93770.0,93769.0,0.78768349]
[1735689198558,0.1,93770.0,93769.0,0.79868349]
[1735689199358,0.1,93770.0,93769.0,0.79768349]
[1735689200059,0.1,93770.0,93769.0,0.79068349]
[1735689200261,0.1,93770.0,93769.0,0.79568349]
[1735689200468,0.153423,93770.0,93769.0,0.008]
[1735689200668,0.05343,93761.0,93760.0,0.053429]
[1735689200853,0.05343,93761.0,93760.0,0.01287308]
[1735689201058,0.05343,93761.0,93755.0,0.3608]
[1735689201252,0.22529194,93770.0,93755.0,0.3608]
[1735689201253,0.053429,93760.0,93759.0,0.053429]
[1735689203366,0.055429,93760.0,93759.0,0.053429]
[1735689210172,0.053429,93760.0,93759.0,0.053429]
[1735689210774,0.053429,93760.0,93759.0,0.054429]
[1735689213968,0.053424,93768.0,93767.0,0.053425]
[1735689215273,0.054424,93768.0,93767.0,0.053425]
[1735689216668,0.056424,93768.0,93767.0,0.053425]
[1735689216868,0.055424,93768.0,93767.0,0.053425]
[1735689217777,0.056424,93768.0,93767.0,0.053425]
[1735689218872,0.056424,93768.0,93767.0,0.06645007]
[1735689219071,0.417224,93768.0,93767.0,0.053425]
[1735689219269,0.05343,93757.0,93756.0,0.053427]
[1735689220075,0.05343,93757.0,93756.0,0.06644439]
[1735689220278,0.05343,93757.0,93756.0,0.42724439]
[1735689221372,0.05443,93757.0,93756.0,0.42724439]
[1735689224474,0.05343,93757.0,93756.0,0.42824439]
[1735689225581,0.05343,93757.0,93756.0,0.37481739]
[1735689225782,0.05343,93757.0,93756.0,0.3618]
[1735689226685,0.05343,93757.0,93756.0,0.001]
[1735689227183,0.05443,93757.0,93756.0,0.00040784]
[1735689227987,0.053435,93748.0,93747.0,0.414236]
[1735689228879,0.11057136,93757.0,93747.0,0.3608]
[1735689229081,0.053434,93752.0,93751.0,0.053431]
[1735689230883,0.053434,93752.0,93751.0,0.054431]
[1735689231288,0.053434,93752.0,93751.0,0.056431]
[1735689243289,0.053438,93744.0,93743.0,0.00056]
[1735689243496,0.414238,93744.0,93743.0,0.053438]
[1735689243991,0.3608,93744.0,93743.0,0.053438]
[1735689244197,0.3608,93744.0,93737.0,0.053442]
[1735689244198,0.053432,93754.0,93744.0,0.053438]
[1735689244392,0.053432,93754.0,93753.0,0.053433]
[1735689246288,0.053432,93754.0,93753.0,0.054433]
[1735689247096,0.053432,93754.0,93753.0,0.06631306]
[1735689248396,0.053432,93754.0,93753.0,0.054433]
[1735689249299,0.053432,93754.0,93753.0,0.001]
[1735689255493,0.053442,93742.0,93741.0,0.053439]
[1735689256092,0.0328,93748.0,93733.0,0.0322]
[1735689256297,0.053442,93739.0,93738.0,0.053441]
[1735689258609,0.053442,93739.0,93738.0,0.057441]
[1735689258794,0.054442,93739.0,93738.0,0.065441]
[1735689263699,0.054442,93739.0,93738.0,0.012]
[1735689263913,0.054442,93739.0,93738.0,0.065441]
[1735689266097,0.415242,93739.0,93738.0,0.065441]
[1735689266298,0.415242,93739.0,93738.0,0.012]
[1735689266507,0.415242,93739.0,93738.0,0.00477279]
[1735689267406,0.415242,93739.0,93738.0,0.06221379]
[1735689267713,0.415242,93739.0,93738.0,0.00877279]
[1735689268003,0.42740266,93739.0,93738.0,0.00877279]
[1735689268408,0.42740266,93739.0,93738.0,0.011]
[1735689274304,0.415242,93739.0,93738.0,0.011]
[1735689274503,0.415242,93739.0,93738.0,0.064442]
[1735689275419,0.415242,93739.0,93738.0,0.011]
[1735689278320,0.415242,93739.0,93738.0,0.00446046]
[1735689288624,0.415242,93739.0,93738.0,0.00182676]
[1735689293522,0.415242,93739.0,93738.0,0.00382676]
[1735689293721,0.414242,93739.0,93738.0,0.007]
[1735689294121,0.414242,93739.0,93738.0,0.005]
[1735689294322,0.053443,93736.0,93735.0,0.01212831]
[1735689294626,0.053445,93732.0,93731.0,0.0016003]
[1735689296234,0.053445,93732.0,93731.0,0.0056003]
[1735689296623,0.053445,93732.0,93731.0,0.0076003]
[1735689297729,0.053445,93732.0,93731.0,0.01921546]
[1735689298527,0.053445,93732.0,93731.0,0.0079136]
[1735689298726,0.053449,93724.0,93723.0,0.05345]
[1735689299829,0.054449,93724.0,93723.0,0.06045]
[1735689300230,0.054449,93724.0,93723.0,0.07228131]
[1735689300627,0.054449,93724.0,93723.0,0.07528131]
[1735689303835,0.053449,93724.0,93723.0,0.06828131]
[1735689304038,0.054449,93724.0,93723.0,0.07528131]
[1735689305737,0.053449,93724.0,93723.0,0.07428131]
[1735689305931,0.054449,93724.0,93723.0,0.07428131]
[1735689309350,0.054449,93724.0,93723.0,0.06828131]
[1735689309651,0.053449,93724.0,93723.0,0.07428131]
[1735689311940,0.414249,93724.0,93723.0,0.07428131]
[1735689315249,0.053449,93724.0,93723.0,0.07428131]
[1735689317645,0.34285325,93733.0,93723.0,0.07428131]
[1735689317849,0.053449,93724.0,93723.0,0.07428131]
[1735689320642,0.053449,93724.0,93723.0,0.07128131]
[1735689320947,0.053449,93724.0,93723.0,0.07428131]
[1735689322051,0.053449,93724.0,93723.0,0.05784131]
[1735689338873,0.3608,93729.0,93723.0,0.05784131]
[1735689339057,0.414248,93729.0,93728.0,0.053447]
[1735689341558,0.414248,93729.0,93728.0,0.054447]
[1735689341960,0.414248,93729.0,93728.0,0.057447]
[1735689345869,0.11504418,93740.0,93728.0,0.057447]
[1735689346071,0.11504418,93740.0,93739.0,0.053441]
[1735689347567,0.053436,93747.0,93746.0,0.053437]
[1735689349571,0.058436,93747.0,93746.0,0.053437]
[1735689349775,0.060436,93747.0,93746.0,0.053437]
[1735689353678,0.421236,93747.0,93746.0,0.053437]
[1735689358777,0.060436,93747.0,93746.0,0.053437]
[1735689359174,0.007,93747.0,93746.0,0.053437]
[1735689361179,0.007,93747.0,93739.0,0.01136137]
[1735689361377,0.41424,93742.0,93741.0,0.053439]
[1735689361979,0.05344,93742.0,93741.0,0.053439]
[1735689362186,0.41424,93742.0,93741.0,0.053439]
[1735689363284,0.004,93742.0,93741.0,0.053439]
[1735689363489,0.053428,93762.0,93758.0,0.05343]
[1735689363684,0.00160023,93759.0,93758.0,0.05343]
[1735689365385,0.00660023,93759.0,93758.0,0.05343]
[1735689365784,0.01360023,93759.0,93758.0,0.05443]
[1735689366180,0.00460023,93759.0,93758.0,0.05343]
[1735689366386,0.01060023,93759.0,93758.0,0.05343]
[1735689368698,0.00460023,93759.0,93758.0,0.05343]
[1735689368889,0.00860023,93759.0,93758.0,0.05343]
[1735689369290,0.00460023,93759.0,93758.0,0.05343]
[1735689369486,0.00860023,93759.0,93758.0,0.05343]
[1735689369692,0.00560023,93759.0,93758.0,0.05343]
[1735689369897,0.00760023,93759.0,93758.0,0.05343]
[1735689370592,0.00760023,93759.0,93758.0,0.0669408]
[1735689370986,0.06103023,93759.0,93758.0,0.0669408]
[1735689381801,0.06003023,93759.0,93758.0,0.0669408]
[1735689382002,0.05803023,93759.0,93758.0,0.0669408]
[1735689382504,0.05703023,93759.0,93758.0,0.0669408]
[1735689382694,0.05803023,93759.0,93758.0,0.0669408]
[1735689383001,0.05603023,93759.0,93758.0,0.0669408]
[1735689383207,0.05803023,93759.0,93758.0,0.0669408]
[1735689385707,0.053434,93753.0,93752.0,0.053433]
[1735689392708,0.053439,93744.0,93743.0,0.053437]
[1735689392914,0.05344,93741.0,93740.0,0.00056]
[1735689393121,0.05344,93741.0,93740.0,0.05344]
[1735689395919,0.05344,93741.0,93740.0,0.05644]
[1735689396313,0.05344,93741.0,93740.0,0.05744]
[1735689397117,0.05344,93741.0,93740.0,0.07136231]
[1735689400419,0.05344,93741.0,93740.0,0.01792231]
[1735689401008,0.05344,93741.0,93740.0,0.004]
[1735689401220,0.05344,93741.0,93708.0,0.053459]
[1735689401221,0.053447,93728.0,93721.0,0.0963]
[1735689401514,0.053447,93728.0,93727.0,0.053448]
[1735689403015,0.26306185,93735.0,93727.0,0.053448]
[1735689403218,0.053448,93728.0,93727.0,0.053448]
[1735689403420,0.054448,93728.0,93727.0,0.053448]
[1735689404214,0.054448,93728.0,93727.0,0.057448]
[1735689404922,0.054448,93728.0,93727.0,0.066448]
[1735689407917,0.001,93728.0,93727.0,0.013]
[1735689410727,0.3608,93749.0,93727.0,0.013]
[1735689410929,0.3608,93749.0,93736.0,0.3608]
[1735689411225,0.3608,93749.0,93737.0,0.0622]
[1735689412625,0.08530029,93750.0,93737.0,0.0682]
[1735689412925,0.44610029,93750.0,93737.0,0.0682]
[1735689414325,0.3608,93740.0,93737.0,0.0682]
[1735689414519,0.3608,93740.0,93737.0,0.006]
[1735689414733,0.3608,93740.0,93737.0,0.002]
[1735689414932,0.0322,93739.0,93737.0,0.007]
[1735689415135,0.0322,93739.0,93719.0,0.0313]
[1735689415336,0.3608,93727.0,93719.0,0.0313]
[1735689415632,0.3608,93727.0,93719.0,0.04466491]
[1735689416427,0.3608,93727.0,93719.0,0.0313]
[1735689416832,0.7216,93727.0,93719.0,0.0313]
[1735689417032,0.7216,93727.0,93711.0,0.0304]
[1735689417237,0.3608,93715.0,93711.0,0.0304]
[1735689419031,0.3618,93715.0,93711.0,0.0374]
[1735689419234,0.3528,93715.0,93711.0,0.0374]
[1735689419930,0.3538,93715.0,93711.0,0.0464]
[1735689422736,0.3608,93712.0,93711.0,0.0464]
[1735689423938,0.002,93715.0,93711.0,0.0464]
[1735689424639,0.001,93712.0,93711.0,0.0464]
[1735689424840,0.001,93712.0,93711.0,0.0374]
[1735689425043,0.002,93712.0,93711.0,0.0374]
[1735689425436,0.001,93712.0,93711.0,0.0374]
[1735689425844,0.001,93715.0,93711.0,0.0374]
[1735689426044,0.002,93715.0,93711.0,0.0374]
[1735689426249,0.001,93712.0,93711.0,0.0374]
[1735689426543,0.002,93712.0,93711.0,0.0374]
[1735689427644,0.21178544,93725.0,93711.0,0.0304]
[1735689427847,0.001,93715.0,93711.0,0.0374]
[1735689428243,0.002,93715.0,93711.0,0.0434]
[1735689428643,0.001,93712.0,93711.0,0.0434]
[1735689429348,0.001,93712.0,93711.0,0.0374]
[1735689429538,0.002,93715.0,93711.0,0.0434]
[1735689431146,0.002,93712.0,93711.0,0.0464]
[1735689431548,0.10962244,93730.0,93711.0,0.0384]
[1735689431742,0.001,93715.0,93711.0,0.0464]
[1735689431942,0.002,93715.0,93711.0,0.0464]
[1735689432147,0.001,93715.0,93711.0,0.0384]
[1735689432347,0.001,93712.0,93711.0,0.0464]
[1735689432751,0.11062244,93730.0,93711.0,0.0384]
[1735689432943,0.001,93715.0,93711.0,0.0464]
[1735689434255,0.001,93715.0,93711.0,0.0384]
[1735689434457,0.001,93712.0,93711.0,0.0464]
[1735689434645,0.001,93712.0,93711.0,0.0384]
[1735689434949,0.002,93712.0,93711.0,0.0464]
[1735689435152,0.001,93712.0,93711.0,0.0464]
[1735689435453,0.002,93715.0,93711.0,0.0474]
[1735689435849,0.001,93715.0,93711.0,0.0394]
[1735689436047,0.002,93712.0,93711.0,0.0564]
[1735689437546,0.001,93712.0,93711.0,0.0564]
[1735689438258,0.001,93712.0,93711.0,0.0484]
[1735689438452,0.001,93712.0,93711.0,0.0464]
[1735689439062,0.002,93712.0,93711.0,0.0464]
[1735689448360,0.002,93712.0,93711.0,0.768]
[1735689449259,0.002,93712.0,93711.0,0.7376]
[1735689451656,0.002,93712.0,93711.0,0.3768]
[1735689454261,0.002,93712.0,93711.0,0.7376]
[1735689461166,0.3628,93712.0,93711.0,0.016]
[1735689461372,0.3628,93712.0,93699.0,0.19156359]
[1735689461566,0.3608,93700.0,93695.0,0.01261408]
[1735689461872,0.0332,93699.0,93692.0,0.19316433]
[1735689463066,0.0332,93699.0,93692.0,0.00160074]
[1735689463373,0.0332,93699.0,93695.0,0.001]
[1735689463374,0.0262,93699.0,93695.0,0.001]
[1735689463974,0.0272,93699.0,93692.0,0.01513844]
[1735689464174,0.0282,93699.0,93692.0,0.02413844]
[1735689464365,0.0272,93699.0,93692.0,0.02313844]
[1735689464561,0.0301,93698.0,93695.0,0.001]
[1735689466176,0.0301,93698.0,93695.0,0.004]
[1735689467075,0.0311,93698.0,93695.0,0.004]
[1735689467475,0.0321,93698.0,93695.0,0.004]
[1735689482584,0.002,93698.0,93695.0,0.004]
[1735689482980,0.001,93698.0,93692.0,0.0125377]
[1735689483180,0.001,93698.0,93695.0,0.003]
[1735689484076,0.001,93698.0,93692.0,0.004]
[1735689485792,0.001,93698.0,93686.0,0.37381498]
[1735689485987,0.001,93698.0,93695.0,0.003]
[1735689486591,0.001,93698.0,93687.0,0.031]
[1735689486790,0.001,93698.0,93692.0,0.004]
[1735689487495,0.001,93698.0,93695.0,0.003]
[1735689489394,0.001,93698.0,93692.0,0.004]
[1735689490085,0.001,93698.0,93695.0,0.003]
[1735689490889,0.001,93698.0,93692.0,0.004]
[1735689492598,0.001,93698.0,93695.0,0.003]
[1735689493398,0.001,93698.0,93692.0,0.004]
[1735689495491,0.001,93698.0,93695.0,0.003]
[1735689496293,0.001,93698.0,93692.0,0.004]
[1735689497095,0.001,93698.0,93695.0,0.003]
[1735689497503,0.3608,93700.0,93695.0,0.003]
[1735689497703,0.001,93698.0,93695.0,0.003]
[1735689498101,0.3608,93700.0,93695.0,0.003]
[1735689498405,0.001,93698.0,93695.0,0.003]
[1735689498706,0.001,93698.0,93688.0,0.0626]
[1735689498894,0.001,93698.0,93692.0,0.004]
[1735689499698,0.3618,93700.0,93692.0,0.004]
[1735689500104,0.3618,93700.0,93695.0,0.003]
[1735689500305,0.001,93698.0,93695.0,0.003]
[1735689500805,0.3608,93700.0,93695.0,0.003]
[1735689501108,0.3618,93700.0,93695.0,0.003]
[1735689501412,0.3608,93700.0,93695.0,0.003]
[1735689501703,0.001,93698.0,93688.0,0.0626]
[1735689501910,0.001,93698.0,93692.0,0.004]
[1735689502516,0.001,93698.0,93688.0,0.0626]
[1735689502718,0.001,93698.0,93695.0,0.003]
[1735689503011,0.3608,93700.0,93695.0,0.003]
[1735689503219,0.3618,93700.0,93695.0,0.003]
[1735689503414,0.3618,93700.0,93692.0,0.004]
[1735689503608,0.3608,93700.0,93692.0,0.004]
[1735689503812,0.001,93698.0,93692.0,0.004]
[1735689504209,0.3608,93700.0,93692.0,0.004]
[1735689504409,0.3618,93700.0,93692.0,0.004]
[1735689505116,0.3618,93700.0,93695.0,0.003]
[1735689505812,0.001,93698.0,93692.0,0.004]
[1735689506517,0.3618,93700.0,93692.0,0.004]
[1735689506818,0.3618,93700.0,93695.0,0.003]
[1735689507114,0.001,93698.0,93695.0,0.003]
[1735689507513,0.3608,93700.0,93695.0,0.003]
[1735689507713,0.3618,93700.0,93695.0,0.003]
[1735689508214,0.3618,93700.0,93692.0,0.004]
[1735689509116,0.001,93698.0,93695.0,0.003]
[1735689509715,0.3618,93700.0,93688.0,0.0626]
[1735689509923,0.3618,93700.0,93692.0,0.004]
[1735689510121,0.3608,93700.0,93692.0,0.004]
[1735689510322,0.001,93698.0,93692.0,0.004]
[1735689510709,0.3608,93700.0,93692.0,0.004]
[1735689510914,0.3618,93700.0,93692.0,0.004]
[1735689511421,0.3618,93700.0,93688.0,0.0626]
[1735689511615,0.3618,93700.0,93695.0,0.003]
[1735689512318,0.3618,93700.0,93692.0,0.004]
[1735689513123,0.3618,93700.0,93688.0,0.0626]
[1735689513124,0.3618,93700.0,93695.0,0.003]
[1735689514417,0.001,93700.0,93695.0,0.003]
[1735689514619,0.001,93700.0,93692.0,0.004]
[1735689515323,0.37376514,93702.0,93692.0,0.004]
[1735689515623,0.001,93700.0,93695.0,0.01]
[1735689515917,0.001,93700.0,93695.0,0.003]
[1735689516310,0.001,93700.0,93692.0,0.011]
[1735689516714,0.37396513,93702.0,93692.0,0.011]
[1735689517815,0.37396513,93702.0,93692.0,0.007]
[1735689518014,0.37396513,93702.0,93695.0,0.003]
[1735689518622,0.37396513,93702.0,93692.0,0.011]
[1735689519416,0.37396513,93702.0,93688.0,0.42396]
[1735689519417,0.001,93700.0,93695.0,0.007]
[1735689519617,0.001,93700.0,93695.0,0.01]
[1735689520015,0.37396513,93702.0,93695.0,0.003]
[1735689520727,0.001,93700.0,93695.0,0.01]
[1735689521220,0.3608,93702.0,93695.0,0.007]
[1735689521426,0.3618,93702.0,93695.0,0.007]
[1735689521823,0.001,93702.0,93695.0,0.007]
[1735689522028,0.3608,93701.0,93695.0,0.01]
[1735689523027,0.001,93700.0,93695.0,0.01]
[1735689523422,0.3618,93701.0,93695.0,0.01]
[1735689528137,0.3618,93701.0,93695.0,0.00406871]
[1735689532639,0.3618,93701.0,93677.0,0.0301]
[1735689532939,0.3608,93686.0,93677.0,0.0301]
[1735689533840,0.16123996,93686.0,93677.0,0.0341]
[1735689534338,0.16123996,93686.0,93677.0,0.004]
[1735689534533,0.16223996,93686.0,93676.0,0.01670073]
[1735689534733,0.16323996,93686.0,93677.0,0.004]
[1735689536034,0.3608,93678.0,93677.0,0.004]
[1735689536549,0.3608,93678.0,93676.0,0.04367459]
[1735689537039,0.3608,93678.0,93677.0,0.009]
[1735689537432,0.3618,93678.0,93677.0,0.014]
[1735689537636,0.3618,93678.0,93677.0,0.005]
[1735689537835,0.3628,93678.0,93677.0,0.005]
[1735689539544,0.3618,93678.0,93677.0,0.014]
[1735689539847,0.001,93678.0,93677.0,0.014]
[1735689543257,0.001,93678.0,93677.0,0.3748]
[1735689543452,0.3937,93704.0,93677.0,0.4066]
[1735689543453,0.3608,93704.0,93677.0,0.4066]
[1735689543652,0.3608,93704.0,93690.0,0.07194229]
[1735689543851,0.3608,93704.0,93691.0,0.0655]
[1735689545057,0.07194229,93701.0,93691.0,0.0655]
[1735689545260,0.14388458,93701.0,93691.0,0.0655]
[1735689545460,0.0317,93700.0,93686.0,0.3608]